{"text_format":"1","workbook":"xlsx","n_sheets":5,"sheets":["BESS Intake Form","Lists","Matrix Power Energy","Skid Matrix Power Energy","Copy Past"],"not_rendered":{"charts":0,"images":1,"macros":1,"external_links":1,"defined_names":27,"comments":0,"pivot_tables":0},"unopened":[],"bounds":{"document_bytes":16777216,"sheet_cells":100000,"rows_first":2000,"rows_last":500,"rows_between":2000,"halvings":0,"cell_chars":16384,"cell_head_chars":4096},"cells_cut":0,"cells_raw":0,"read":"whole","date_system":"1900"}

{"sheet":"BESS Intake Form","index":0,"n_rows":58,"n_cols":8,"rows_kept":58,"cut":false,"hidden":false,"merged":[[40,10,47,11],[46,1,46,2],[56,5,56,6],[3,5,3,6],[3,1,3,2],[13,1,13,2],[29,1,29,2],[35,5,39,6],[44,1,45,2],[44,5,45,6],[1,1,1,5],[2,1,2,5],[52,1,52,2],[53,1,53,2],[46,5,46,6],[57,5,57,6],[56,1,56,2],[47,1,50,2],[52,5,52,6],[53,5,55,6],[47,5,51,6]]}
[]
[null,"BESS Project Intake Form"]
[null,"Please fill out the form. All mandatory fields are indicated by a * "]
[null,"CONTACT",null,null,null,"BESS TECHNICAL DETAILS "]
[]
[null,"Company Name",null,"*",null,"BESS Skid Option¹",null,"*"]
[]
[null,"Contact Name",null,null,null,"BESS Power",null,"*"]
[]
[null,"Contact Email",null,null,null,"BESS Energy",null,"*"]
[]
[null,"Socomec Sales Contact ",null,"*",null,"BESS Layout",null,"*"]
[]
[null,"PROJECT DETAILS ",null,null,null,"BESS HMI","NO","*"]
[]
[null,"Project Name",null,"*",null,"BESS Quantity",null,"*"]
[]
[null,"End-User Name",null,null,null,"BESS Application"]
[]
[null,"Project Address",null,"*",null,"BESS Operation Mode² ",null,"*"]
[]
[null,"Project State/Province",null,"*",null,"BESS Power Export/Import Limitation (CRD)³",null,"*"]
[]
[null,"Project Market Segment",null,null,null,"Microgrid Configuration - Solar PV (kWac)⁴"]
[]
[null,"Project Utility ",null,null,null,"Microgrid Configuration - Genset"]
[]
[null,"Project Grid Interconnection Code ",null,null,null,"BESS EMS Provider⁵","Energy Toolbase"]
[]
[null,"TIMELINE",null,null,null,"BESS Warranty⁶",null,"*"]
[]
[null,"Proposal Expected Date (mm/dd/yyyy)",null,"*",null,"BESS Type of Maintenance⁷","DIY Package","*"]
[]
[null,"Purchase Order Expected Date (mm/dd/yyyy)",null,"*",null,"Comments"]
[]
[null,"Delivery Expected Date (mm/dd/yyyy)⁰ "]
[]
[null,"Delivery Incoterm "]
[]
[null,"Commissiong Expected Date (mm/dd/yyyy)"]
[]
[null,"Notes"]
[]
[null,"Delivery Expected Date⁰ ",null,null,null,"BESS Skid Option¹"]
[null,"Standard delivery is 24 weeks after receipt of PO, if earlier contact Socomec",null,null,null,"Skidded configurations for quick & easy shipping, Installation, Commisionning and Redeployment. Skidded BESS comes on site assembled, cabled and factory tested. Available up to 300 kVA / 609 kWh"]
[]
[null,"BESS Operation Mode² ",null,null,null,"BESS Power Export/Import Limitation (CRD)³"]
[null,"Grid-tied only = BESS will NOT work in the absence of grid power / only grid-follower\nIslanding Mode = BESS will work in the absence of grid power / can act as grid-former and control other generation sources (PV, Genset)\nATS Genset = Genset on a Automatic Transfer Switch supplying only the critical loads\nParallel Genset = Genset in parallel with BESS able to supply loads and BESS",null,null,null,"The Certification Requirement Decision (CRD) for Battery Energy Storage Systems (BESS) involves compliance with UL 1741 CRD-PCS standards, focusing on four operational modes:\nImport only = ESS is allowed to import power from the grid but not export power\nExport only = ESS is not allowed to import power but can export\nUnrestricted = ESS can import and export\nNo Exchange = No import and no export"]
[]
[]
[]
[]
[null,"Microgrid Configuration - Solar PV (kWac)⁴",null,null,null,"BESS EMS Provider⁵"]
[null,"If Solar PV Power > 1.5 x BESS' Nominal Power, please contact Socomec to discuss feasability",null,null,null,"EMS = Energy Management System. It operates in concert with the SOCOMEC Power Management System to monitor and manage energy consumption and supply of ESS.\nSocomec does not provide an EMS "]
[]
[null,"BESS Warranty⁶"]
[null,"Standard Warranty period is 3 years. Most purchased warranty period is 10 years.",null,null,null,"BESS Type of Maintenance⁷"]
[null,null,null,null,null,"DIY Package = Socomec performs the specific maintenance (Y3, Y5, Y10), parts and labor are included, travel is excluded."]

{"sheet":"Lists","index":1,"n_rows":64,"n_cols":17,"rows_kept":64,"cut":false,"hidden":true,"merged":[]}
["US States & CA Provinces:","Power","Energy","Layout","SKID Option","HMI","Operation mode","BESS Power Export/Import Limitation (CRD)","BESS Application","EMS Provider","Warranty","Maintenance Type","Project Market Application","Grid Interconnections Code","Delivery Incoterm","Genset","Utility"]
["Alabama",50,203,"In Line","YES","YES","Grid-tied only","Unrestricted mode","Off-Grid Microgrid","Ageto","No warranty ext.","DIY Package","C&I","CAT I","EXW - Ex-Works","None","Pacific Gas and Electric Company (PG&E)"]
["Alaska",100,406,"Back-to-back","NO","NO","Islanding BESS only","Export only mode","Peak Shaving","Battalion",5,"Complete Socomec Package","EVCI","CAT II","DDP - Delivered Duty Paid","Isochronous - ATS","Southern California Edison (SCE)"]
["Arizona",150,609,null,null,null,"Islanding BESS + PV only","Import only mode","Self-Consumption","ComAp",10,null,"Community Scale","CAT III",null,"Isochronous - µgrid","San Diego Gas & Electric (SDG&E)"]
["Arkansas",200,811,null,null,null,"Islanding BESS + PV + ATS-GENSET only","No exchange mode","Price Arbitrage","Derbi",15,null,"Off-Grid","PG&E",null,"P/Q mode - µgrid","Duke Energy"]
["California",250,1015,null,null,null,"Islanding BESS + PV + Parallel GENSET","To be confirmed","Grid Services","EDF PowerFlex X",null,null,null,"PSE&G",null,"Don't know","Florida Power & Light"]
["Colorado",300,1218,null,null,null,null,"Don't know","Backup Power","Elum",null,null,null,"SCE",null,null,"Consolidated Edison"]
["Connecticut",350,1628,null,null,null,null,null,"Fuel Saving","Energy IQ",null,null,null,"SDG&E",null,null,"Georgia Power"]
["Delaware",400,{"$f":"C8+407","v":2035},null,null,null,null,null,"Don't know","Energy Toolbase",null,null,null,"HECO Rule 14",null,null,"Dominion Energy"]
["Florida",450,2442,null,null,null,null,null,null,"GreenStruxure",null,null,null,"Not applicable ",null,null,"DTE Energy"]
["Georgia",500,2849,null,null,null,null,null,null,"Homer ULTRUS",null,null,null,"Don't know",null,null,"Consumers Energy"]
["Hawaii",550,3256,null,null,null,null,null,null,"Honeywell",null,null,null,null,null,null,"Eversource Energy"]
["Idaho",750,3663,null,null,null,null,null,null,"HQ",null,null,null,null,null,null,"Exelon Corporation"]
["Illinois",1000,4070,null,null,null,null,null,null,"IntellaStar",null,null,null,null,null,null,"Public Service Electric & Gas"]
["Indiana",1250,4477,null,null,null,null,null,null,"New Sun Road",null,null,null,null,null,null,"Public Service Enterprise Group (PSEG)"]
["Iowa",1500,4884,null,null,null,null,null,null,"Nexus",null,null,null,null,null,null,"NextEra Energy"]
["Kansas",null,5291,null,null,null,null,null,null,"OATI",null,null,null,null,null,null,"Southern Company"]
["Kentucky",null,5698,null,null,null,null,null,null,"Qcells Geli",null,null,null,null,null,null,"American Electric Power (AEP)"]
["Louisiana",null,6105,null,null,null,null,null,null,"Ranial CognitEMS",null,null,null,null,null,null,"City Public Service Board of San Antonio"]
["Maine",null,null,null,null,null,null,null,null,"Sparkion",null,null,null,null,null,null,"FirstEnergy"]
["Maryland",null,null,null,null,null,null,null,null,"Stem Athena",null,null,null,null,null,null,"CenterPoint Energy"]
["Massachusetts",null,null,null,null,null,null,null,null,"Uplight (AutoGrid)",null,null,null,null,null,null,"Xcel Energy"]
["Michigan",null,null,null,null,null,null,null,null,"Wunderlich Malec",null,null,null,null,null,null,"Entergy Corporation"]
["Minnesota",null,null,null,null,null,null,null,null,"Xendee",null,null,null,null,null,null,"PPL Corporation"]
["Mississippi",null,null,null,null,null,null,null,null,"Other",null,null,null,null,null,null,"Alliant Energy"]
["Missouri",null,null,null,null,null,null,null,null,"None",null,null,null,null,null,null,"Avangrid"]
["Montana",null,null,null,null,null,null,null,null,"Don't know",null,null,null,null,null,null,"NiSource"]
["Nebraska",null,null,null,null,null,null,null,null,null,null,null,null,null,null,null,"CMS Energy"]
["Nevada"]
["New Hampshire"]
["New Jersey"]
["New Mexico"]
["New York"]
["North Carolina"]
["North Dakota"]
["Ohio"]
["Oklahoma"]
["Oregon"]
["Pennsylvania"]
["Rhode Island"]
["South Carolina"]
["South Dakota"]
["Tennessee"]
["Texas"]
["Utah"]
["Vermont"]
["Virginia"]
["Washington"]
["West Virginia"]
["Wisconsin"]
["Wyoming"]
["Alberta"]
["British Columbia"]
["Manitoba"]
["New Brunswick"]
["Newfoundland and Labrador"]
["Nova Scotia"]
["Ontario"]
["Prince Edward Island"]
["Quebec"]
["Saskatchewan"]
["Northwest Territories"]
["Nunavut"]
["Yukon"]

{"sheet":"Matrix Power Energy","index":2,"n_rows":10,"n_cols":16,"rows_kept":10,"cut":false,"hidden":true,"merged":[[0,0,0,15]]}
["Standard Configurations Matrix"]
["50_Battery","100_Battery","150_Battery","200_Battery","250_Battery","300_Battery","350_Battery","400_Battery","450_Battery","500_Battery","550_Battery","600_Battery","750_Battery","1000_Battery","1250_Battery","1500_Battery"]
[203,203,406,406,609,609,812,812,1015,1015,1218,1218,1628,2442,2849,3256]
[406,406,609,609,812,812,1015,1015,1218,1218,null,null,2035,2849,3256,3663]
[null,609,812,812,1015,1015,1218,1218,null,null,null,null,2442,3256,3663,4070]
[null,null,null,1015,1218,1218,null,null,null,null,null,null,2849,3663,4070,4477]
[null,null,null,null,null,null,null,null,null,null,null,null,3256,4070,4477,4884]
[null,null,null,null,null,null,null,null,null,null,null,null,null,4477,4884,5291]
[null,null,null,null,null,null,null,null,null,null,null,null,null,null,5291,5698]
[null,null,null,null,null,null,null,null,null,null,null,null,null,null,5698,6105]

{"sheet":"Skid Matrix Power Energy","index":3,"n_rows":5,"n_cols":16,"rows_kept":5,"cut":false,"hidden":true,"merged":[[0,0,0,15]]}
["Skid Configurations Matrix"]
["_50_Skid","_100_Skid","_150_Skid","_200_Skid","_250_Skid","_300_Skid","350_Skid","400_Skid","450_Skid","500_Skid","550_Skid","600_Skid","750_Skid","1000_Skid","1250_Skid","1500_Skid"]
[203,203,406,406,609,609]
[406,406,609,609]
[null,609]

{"sheet":"Copy Past","index":4,"n_rows":19,"n_cols":4,"rows_kept":19,"cut":false,"hidden":true,"merged":[]}
[]
[null,"Power",{"$f":"'BESS Intake Form'!G8","v":0},"OK"]
[null,"Energy",{"$f":"'BESS Intake Form'!G10","v":0},"OK"]
[null,"Operation Mode",{"$f":"IF('BESS Intake Form'!G20=Lists!G2,\"On-Grid Mode\",\"Island Mode\")","v":"Island Mode"},"Si Operation Mode AT#1 - Grid-tied only alors sinon "]
[null,"Warranty Duration",{"$f":"'BESS Intake Form'!G30","v":0},"OK"]
[null,"ESS version","SUNSYS HES L","OK"]
[null,"Type of maintenance*",{"$f":"'BESS Intake Form'!G32","v":"DIY Package"},"OK"]
[null," UL1741 CRD mode",{"$f":"'BESS Intake Form'!G22","v":0},"OK"]
[null,"HMI",{"$f":"'BESS Intake Form'!G14","v":"NO"},"OK"]
[null,"Customer Tier category","Tier 3","SALES TO DECIDE Pop up window to open to selct Tier and "]
[null,"Type of layout",{"$f":"IF('BESS Intake Form'!G6=\"NO\",'BESS Intake Form'!G12,\"Skid\")","v":"Skid"},"OK"]
[null,"Project Management & Engineering Support","YES","Par défaut oui"]
[null,"PV",{"$f":"IF(OR('BESS Intake Form'!G20=Lists!G2,'BESS Intake Form'!G20=Lists!G3),\"NO\",\"YES\")","v":"YES"},"Si tel Operation mode alors"]
[null,"Genset on ATS",{"$f":"IF('BESS Intake Form'!G20=Lists!G5,\"YES\",\"NO\")","v":"NO"},"Si tel Operation mode alors"]
[null,"Parallel mode Genset",{"$f":"IF('BESS Intake Form'!G20=Lists!G6,\"YES\",\"NO\")","v":"NO"},"Si tel Operation mode alors"]
[null,"Shipping included","YES","Par défaut oui"]
[null,"ESS Zone",{"$f":"IF(OR('BESS Intake Form'!C22=\"California\",'BESS Intake Form'!C22=\"Arizona\",'BESS Intake Form'!C22=\"Utah\",'BESS Intake Form'!C22=\"Nevada\",'BESS Intake Form'!C22=\"Oregon\",'BESS Intake Form'!C22=\"Idaho\",'BESS Intake Form'!C22=\"Montana\",'BESS Intake Form'!C22=\"Washington\",'BESS Intake Form'!C22=\"British Columbia\",'BESS Intake Form'!C22=\"Alberta\",'BESS Intake Form'!C22=\"Yukon\",'BESS Intake Form'!C22=\"Alaska\"),\"#3\",IF(OR('BESS Intake Form'!C22=\"Texas\",'BESS Intake Form'!C22=\"New Mexico\",'BESS Intake Form'!C22=\"Colorado\",'BESS Intake Form'!C22=\"Oklahoma\",'BESS Intake Form'!C22=\"Arkansas\",'BESS Intake Form'!C22=\"Louisiana\",'BESS Intake Form'!C22=\"Missouri\",'BESS Intake Form'!C22=\"Mississippi\",'BESS Intake Form'!C22=\"Kansas\",'BESS Intake Form'!C22=\"Illinois\",'BESS Intake Form'!C22=\"Wyoming\",'BESS Intake Form'!C22=\"Nebraska\",'BESS Intake Form'!C22=\"Iowa\",'BESS Intake Form'!C22=\"Minnesota\",'BESS Intake Form'!C22=\"South Dakota\",'BESS Intake Form'!C22=\"North Dakota\",'BESS Intake Form'!C22=\"Saskatchewan\",'BESS Intake Form'!C22=\"Manitoba\"),\"#2\",\"#1\"))","v":"#1"},"SI Project State XXX = 1 ; BBB= 2; "]
[null,"Final destination name",{"$f":"'BESS Intake Form'!C20 & \", \" & 'BESS Intake Form'!C22","v":", "},"Address"]
[null,"Shipping distance (miles)","300","Improvement TEST API Google DistanceMatrix"]